Workbook

Sheet Калкулатор на заеми
B2: КАЛКУЛАТОР НА УНИВЕРСИТЕТСКИ | G2: 50,000 лв. | L2: 2011-05-10
B3: ЗАЕМ
B5: Препоръчително е общото месечно плащане на заем за обучение да не надвишава 8% от първата ви годишна заплата.
C7: Комбинираното ви текущо месечно плащане е: | F7: =УниверситетскиЗаеми[[#Totals],[Текущо месечно плащане]] -> 328.59 лв. | I7: Комбинираното ви планирано месечно плащане е: | M7: =УниверситетскиЗаеми[[#Totals],[Планирано плащане]] -> 328.59 лв.
C8: Процент от месечен доход: | F8: =УниверситетскиЗаеми[[#Totals],[Текущо месечно плащане]]/ПриблизителнаМесечнаЗаплата -> 7.89% | I8: Процент от месечен доход: | M8: =УниверситетскиЗаеми[[#Totals],[Планирано плащане]]/ПриблизителнаМесечнаЗаплата -> 7.89%
C11: ОБЩА ИНФОРМАЦИЯ ЗА ЗАЕМА | G11: ДАННИ ЗА ИЗПЛАЩАНЕ НА ЗАЕМА | J11: ПОДРОБНИ ДАННИ ЗА ПЛАЩАНЕ
C12: Заем № | D12: Заемодател | E12: Сума на заема | F12: Годишен лихвен процент | G12: Начална дата | H12: Продължителност (години) | I12: Крайна дата | J12: Текущо месечно плащане | K12: Обща лихва | L12: Планирано плащане | M12: Годишно плащане
C13: 10998M88 | D13: Заемодател 1 | E13: 10,000.00 лв. | F13: 5.00% | G13: 2012-04-01 | H13: 10 | I13: =IF(AND(УниверситетскиЗаеми[[#This Row],[Начална дата]]>0,УниверситетскиЗаеми[[#This Row],[Продължителност (години)]]>0),EDATE(УниверситетскиЗаеми[[#This Row],[Начална дата]],УниверситетскиЗаеми[[#This Row],[Продължителност (години)]]*12),"") -> 2022-04-01 | J13: =IF(AND(НачалоЗаемДнес,COUNT(УниверситетскиЗаеми[[#This Row],[Сума на заема]]:УниверситетскиЗаеми[[#This Row],[Продължителност (години)]])=4,УниверситетскиЗаеми[[#This Row],[Начална дата]]<TODAY()),PMT(УниверситетскиЗаеми[[#This Row],[Годишен лихвен процент]]/12,УниверситетскиЗаеми[[#This Row],[Продължителност (години)]]*12,-УниверситетскиЗаеми[[#This Row],[Сума на заема]],0,0),"") -> 106.07 лв. | K13: =IFERROR((УниверситетскиЗаеми[[#This Row],[Планирано плащане]]*(УниверситетскиЗаеми[[#This Row],[Продължителност (години)]]*12))-УниверситетскиЗаеми[[#This Row],[Сума на заема]],"") -> 2,727.86 лв. | L13: =IF(COUNTA(УниверситетскиЗаеми[[#This Row],[Сума на заема]]:УниверситетскиЗаеми[[#This Row],[Продължителност (години)]])<>4,"",PMT(УниверситетскиЗаеми[[#This Row],[Годишен лихвен процент]]/12,УниверситетскиЗаеми[[#This Row],[Продължителност (години)]]*12,-УниверситетскиЗаеми[[#This Row],[Сума на заема]],0,0)) -> 106.07 лв. | M13: =IFERROR(УниверситетскиЗаеми[[#This Row],[Планирано плащане]]*12,"") -> 1,272.79 лв.
C14: 20987N87 | D14: Заемодател 2 | E14: 8,000.00 лв. | F14: 5.00% | G14: 2012-05-01 | H14: 10 | I14: =IF(AND(УниверситетскиЗаеми[[#This Row],[Начална дата]]>0,УниверситетскиЗаеми[[#This Row],[Продължителност (години)]]>0),EDATE(УниверситетскиЗаеми[[#This Row],[Начална дата]],УниверситетскиЗаеми[[#This Row],[Продължителност (години)]]*12),"") -> 2022-05-01 | J14: =IF(AND(НачалоЗаемДнес,COUNT(УниверситетскиЗаеми[[#This Row],[Сума на заема]]:УниверситетскиЗаеми[[#This Row],[Продължителност (години)]])=4,УниверситетскиЗаеми[[#This Row],[Начална дата]]<TODAY()),PMT(УниверситетскиЗаеми[[#This Row],[Годишен лихвен процент]]/12,УниверситетскиЗаеми[[#This Row],[Продължителност (години)]]*12,-УниверситетскиЗаеми[[#This Row],[Сума на заема]],0,0),"") -> 84.85 лв. | K14: =IFERROR((УниверситетскиЗаеми[[#This Row],[Планирано плащане]]*(УниверситетскиЗаеми[[#This Row],[Продължителност (години)]]*12))-УниверситетскиЗаеми[[#This Row],[Сума на заема]],"") -> 2,182.29 лв. | L14: =IF(COUNTA(УниверситетскиЗаеми[[#This Row],[Сума на заема]]:УниверситетскиЗаеми[[#This Row],[Продължителност (години)]])<>4,"",PMT(УниверситетскиЗаеми[[#This Row],[Годишен лихвен процент]]/12,УниверситетскиЗаеми[[#This Row],[Продължителност (години)]]*12,-УниверситетскиЗаеми[[#This Row],[Сума на заема]],0,0)) -> 84.85 лв. | M14: =IFERROR(УниверситетскиЗаеми[[#This Row],[Планирано плащане]]*12,"") -> 1,018.23 лв.
C15: 36785LM | D15: Заемодател 3 | E15: 6,000.00 лв. | F15: 4.50% | G15: 2012-03-01 | H15: 10 | I15: =IF(AND(УниверситетскиЗаеми[[#This Row],[Начална дата]]>0,УниверситетскиЗаеми[[#This Row],[Продължителност (години)]]>0),EDATE(УниверситетскиЗаеми[[#This Row],[Начална дата]],УниверситетскиЗаеми[[#This Row],[Продължителност (години)]]*12),"") -> 2022-03-01 | J15: =IF(AND(НачалоЗаемДнес,COUNT(УниверситетскиЗаеми[[#This Row],[Сума на заема]]:УниверситетскиЗаеми[[#This Row],[Продължителност (години)]])=4,УниверситетскиЗаеми[[#This Row],[Начална дата]]<TODAY()),PMT(УниверситетскиЗаеми[[#This Row],[Годишен лихвен процент]]/12,УниверситетскиЗаеми[[#This Row],[Продължителност (години)]]*12,-УниверситетскиЗаеми[[#This Row],[Сума на заема]],0,0),"") -> 62.18 лв. | K15: =IFERROR((УниверситетскиЗаеми[[#This Row],[Планирано плащане]]*(УниверситетскиЗаеми[[#This Row],[Продължителност (години)]]*12))-УниверситетскиЗаеми[[#This Row],[Сума на заема]],"") -> 1,461.97 лв. | L15: =IF(COUNTA(УниверситетскиЗаеми[[#This Row],[Сума на заема]]:УниверситетскиЗаеми[[#This Row],[Продължителност (години)]])<>4,"",PMT(УниверситетскиЗаеми[[#This Row],[Годишен лихвен процент]]/12,УниверситетскиЗаеми[[#This Row],[Продължителност (години)]]*12,-УниверситетскиЗаеми[[#This Row],[Сума на заема]],0,0)) -> 62.18 лв. | M15: =IFERROR(УниверситетскиЗаеми[[#This Row],[Планирано плащане]]*12,"") -> 746.20 лв.
C16: 765R43 | D16: Заемодател 4 | E16: 4,000.00 лв. | F16: 5.00% | G16: 2012-05-01 | H16: 5 | I16: =IF(AND(УниверситетскиЗаеми[[#This Row],[Начална дата]]>0,УниверситетскиЗаеми[[#This Row],[Продължителност (години)]]>0),EDATE(УниверситетскиЗаеми[[#This Row],[Начална дата]],УниверситетскиЗаеми[[#This Row],[Продължителност (години)]]*12),"") -> 2017-05-01 | J16: =IF(AND(НачалоЗаемДнес,COUNT(УниверситетскиЗаеми[[#This Row],[Сума на заема]]:УниверситетскиЗаеми[[#This Row],[Продължителност (години)]])=4,УниверситетскиЗаеми[[#This Row],[Начална дата]]<TODAY()),PMT(УниверситетскиЗаеми[[#This Row],[Годишен лихвен процент]]/12,УниверситетскиЗаеми[[#This Row],[Продължителност (години)]]*12,-УниверситетскиЗаеми[[#This Row],[Сума на заема]],0,0),"") -> 75.48 лв. | K16: =IFERROR((УниверситетскиЗаеми[[#This Row],[Планирано плащане]]*(УниверситетскиЗаеми[[#This Row],[Продължителност (години)]]*12))-УниверситетскиЗаеми[[#This Row],[Сума на заема]],"") -> 529.10 лв. | L16: =IF(COUNTA(УниверситетскиЗаеми[[#This Row],[Сума на заема]]:УниверситетскиЗаеми[[#This Row],[Продължителност (години)]])<>4,"",PMT(УниверситетскиЗаеми[[#This Row],[Годишен лихвен процент]]/12,УниверситетскиЗаеми[[#This Row],[Продължителност (години)]]*12,-УниверситетскиЗаеми[[#This Row],[Сума на заема]],0,0)) -> 75.48 лв. | M16: =IFERROR(УниверситетскиЗаеми[[#This Row],[Планирано плащане]]*12,"") -> 905.82 лв.
C17: Общи суми | E17: =SUBTOTAL(109,УниверситетскиЗаеми[Сума на заема]) -> 28,000.00 лв. | J17: =SUBTOTAL(109,УниверситетскиЗаеми[Текущо месечно плащане]) -> 328.59 лв. | K17: =SUBTOTAL(109,УниверситетскиЗаеми[Обща лихва]) -> 6,901.21 лв. | L17: =SUBTOTAL(109,УниверситетскиЗаеми[Планирано плащане]) -> 328.59 лв. | M17: =SUBTOTAL(109,УниверситетскиЗаеми[Годишно плащане]) -> 3,943.03 лв.
C18: Средни суми | E18: =AVERAGE(УниверситетскиЗаеми[Сума на заема]) -> 7,000.00 лв. | F18: =AVERAGE(УниверситетскиЗаеми[Годишен лихвен процент]) -> 4.88% | K18: =AVERAGE(УниверситетскиЗаеми[Обща лихва]) -> 1,725.30 лв. | M18: =AVERAGE(УниверситетскиЗаеми[Годишно плащане]) -> 985.76 лв.
K20: Общо консолидирано плащане на заем: | M20: =УниверситетскиЗаеми[[#Totals],[Сума на заема]]+УниверситетскиЗаеми[[#Totals],[Обща лихва]] -> 34,901.21 лв.
K22: Очакван месечен доход след завършване: | M22: =(ПриблизителнаГодишнаЗаплата/12) -> 4,166.67 лв.
